fUSD/lending_fUSD_20250629
["ID","MTS","AMOUNT","RATE_DAILY","PERIOD"]
[368573135,1751212383612,-490.0,0.00021917,2]
[368573136,1751212383636,-151.0,0.00021917,2]
[368573137,1751212383659,-151.0,0.00021917,2]
[368573138,1751212383681,-490.0,0.00021917,2]
[368573139,1751212383704,-924.82,0.00021917,2]
[368573140,1751212383727,-490.0,0.00021917,2]
[368573141,1751212383749,-490.0,0.00021917,2]
[368573142,1751212383773,-779.27,0.00021917,2]
[368573143,1751212383795,-490.0,0.00021917,2]
[368573144,1751212383818,-326.51010517,0.00021917,2]
[368573145,1751212383846,-490.0,0.00021917,2]
[368573146,1751212383870,-634.63,0.00021917,2]
[368573147,1751212383892,-192.41812605,0.00021917,2]
[368573148,1751212383915,-574.62,0.00021917,2]
[368573149,1751212383939,-490.0,0.00021917,2]
[368573150,1751212383961,-151.0,0.00021917,2]
[368573151,1751212383984,-490.0,0.00021917,2]
[368573152,1751212384007,-935.62,0.00021917,2]
[368573153,1751212384030,-490.0,0.00021917,2]
[368573154,1751212384053,-849.67,0.00021917,2]
[368573155,1751212384075,-490.0,0.00021917,2]
[368573156,1751212384097,-526.5,0.00021917,2]
[368573157,1751212384119,-490.0,0.00021917,2]
[368573158,1751212384141,-615.69,0.00021917,2]
[368573159,1751212384653,-490.0,0.00021917,2]
[368573160,1751212384680,-490.0,0.00021917,2]
[368573161,1751212384714,-590.3,0.00021917,2]
[368573162,1751212384739,-490.0,0.00021917,2]
[368573163,1751212384763,-1500.0,0.00021917,2]
[368573164,1751212384785,-490.0,0.00021917,2]
[368573165,1751212384808,-151.0,0.00021917,2]
[368573166,1751212384831,-151.0,0.00021917,2]
[368573167,1751212384855,-490.0,0.00021917,2]
[368573168,1751212384879,-490.0,0.00021917,2]
[368573169,1751212384903,-490.0,0.00021917,2]
[368573170,1751212384927,-490.0,0.00021917,2]
[368573171,1751212384950,-490.0,0.00021917,2]
[368573172,1751212384973,-490.0,0.00021917,2]
[368573173,1751212384995,-151.0,0.00021917,2]
[368573174,1751212385017,-151.0,0.00021917,2]
[368573175,1751212385043,-490.0,0.00021917,2]
[368573176,1751212385067,-1784.77,0.00021917,2]
[368573177,1751212385091,-490.0,0.00021917,2]
[368573178,1751212385113,-3181.09,0.00021917,2]
[368573179,1751212385136,-563.05,0.00021917,2]
[368573180,1751212385159,-2943.35,0.00021917,2]
[368573181,1751212385181,-490.0,0.00021917,2]
[368573182,1751212385203,-2129.1,0.00021917,2]
[368573183,1751212385226,-1366.54,0.00021917,2]
[368573184,1751212385249,-2564.41,0.00021917,2]
[368573185,1751212385270,-490.0,0.00021917,2]
[368573186,1751212385293,-881.65,0.00021917,2]
[368573187,1751212385315,-1012.42,0.00021917,2]
[368573188,1751212385336,-24347.81,0.00021917,2]
[368573189,1751212385359,-650.55,0.00021917,2]
[368573190,1751212385380,-490.0,0.00021917,2]
[368573191,1751212385406,-490.0,0.00021917,2]
[368573192,1751212385429,-4591.96,0.00021917,2]
[368573193,1751212385454,-1630.75,0.00021917,2]
[368573194,1751212385476,-490.0,0.00021917,2]
[368573195,1751212385501,-1274.08,0.00021917,2]
[368573196,1751212385524,-2095.15,0.00021917,2]
[368573197,1751212385546,-9276.93,0.00021917,2]
[368573198,1751212385568,-151.0,0.00021917,2]
[368573199,1751212385590,-151.0,0.00021917,2]
[368573200,1751212385612,-500.44,0.00021917,2]
[368573201,1751212385635,-4325.35,0.00021917,2]
[368573202,1751212385657,-575.38,0.00021917,2]
[368573203,1751212385680,-151.0,0.00021917,2]
[368573204,1751212385703,-152.827026,0.00021917,2]
[368573205,1751212385726,-1725.19,0.00021917,2]
[368573206,1751212385752,-1292.56,0.00021917,2]
[368573207,1751212385774,-490.0,0.00021917,2]
[368573208,1751212385797,-490.0,0.00021917,2]
[368573209,1751212385819,-772.38,0.00021917,2]
[368573210,1751212385842,-490.0,0.00021917,2]
[368573211,1751212385865,-1878.49,0.00021917,2]
[368573212,1751212385890,-490.0,0.00021917,2]
[368573213,1751212385913,-490.0,0.00021917,2]
[368573214,1751212385935,-2143.91,0.00021917,2]
[368573215,1751212385958,-1230.95,0.00021917,2]
[368573216,1751212385981,-1617.26,0.00021917,2]
[368573217,1751212386005,-1693.98,0.00021917,2]
[368573218,1751212386028,-505.68,0.00021917,2]
[368573219,1751212386051,-490.0,0.00021917,2]
[368573220,1751212386073,-490.0,0.00021917,2]
[368573221,1751212386096,-3159.81,0.00021917,2]
[368573222,1751212386117,-151.0,0.00021917,2]
[368573223,1751212386140,-151.0,0.00021917,2]
[368573224,1751212386162,-1039.22,0.00021917,2]
[368573225,1751212386185,-490.0,0.00021917,2]
[368573226,1751212386207,-159544.15,0.00021917,2]
[368573227,1751212386232,-151.0,0.00021917,2]
[368573228,1751212386255,-151.0,0.00021917,2]
[368573229,1751212386278,-911.01,0.00021917,2]
[368573230,1751212386301,-2909.04,0.00021917,2]
[368573231,1751212386323,-18330.55,0.00021917,2]
[368573232,1751212386346,-151.0,0.00021917,2]
[368573233,1751212386369,-151.0,0.00021917,2]
[368573234,1751212386394,-151.0,0.00021917,2]
[368573235,1751212386431,-490.0,0.00021917,2]
[368573236,1751212386458,-1768.26,0.00021917,2]
[368573237,1751212386483,-973.82,0.00021917,2]
[368573238,1751212386508,-12490.75,0.00021917,2]
[368573239,1751212386533,-1655.27,0.00021917,2]
[368573240,1751212386556,-490.0,0.00021917,2]
[368573241,1751212386580,-1190.32,0.00021917,2]
[368573242,1751212386602,-490.0,0.00021917,2]
[368573243,1751212386625,-183.82241337,0.00021917,2]
[368573244,1751212386650,-7918.2,0.00021917,2]
[368573245,1751212386673,-2482.94,0.00021917,2]
[368573246,1751212386696,-490.0,0.00021917,2]
[368573247,1751212386719,-300.0,0.00021917,2]
[368573248,1751212386743,-990.86,0.00021917,2]
[368573249,1751212386767,-490.0,0.00021917,2]
[368573250,1751212386791,-490.0,0.00021917,2]
[368573251,1751212386815,-3231.2,0.00021917,2]
[368573252,1751212386837,-490.0,0.00021917,2]
[368573253,1751212386860,-490.0,0.00021917,2]
[368573254,1751212386884,-490.0,0.00021917,2]
[368573255,1751212386907,-1883.93,0.00021917,2]
[368573256,1751212386931,-3386.05,0.00021917,2]
[368573257,1751212386954,-1083.42,0.00021917,2]
[368573258,1751212386977,-8479.48,0.00021917,2]
[368573259,1751212387000,-1020.02,0.00021917,2]
[368573260,1751212387022,-849.81,0.00021917,2]
[368573261,1751212387046,-7175.31,0.00021917,2]
[368573262,1751212387069,-151.0,0.00021917,2]
[368573263,1751212387092,-2340.32,0.00021917,2]
[368573264,1751212387115,-490.0,0.00021917,2]
[368573265,1751212387141,-151.0,0.00021917,2]
[368573266,1751212387165,-572.41,0.00021917,2]
[368573267,1751212387188,-677.68,0.00021917,2]
[368573268,1751212387211,-490.0,0.00021917,2]
[368573269,1751212387234,-490.0,0.00021917,2]
[368573270,1751212387257,-1598.68,0.00021917,2]
[368573271,1751212387280,-490.0,0.00021917,2]
[368573272,1751212387302,-4985.87,0.00021917,2]
[368573273,1751212387324,-490.0,0.00021917,2]
[368573274,1751212387346,-490.0,0.00021917,2]
[368573275,1751212387369,-1581.27,0.00021917,2]
[368573276,1751212387392,-151.905166,0.00021917,2]
[368573277,1751212387420,-2438.54,0.00021917,2]
[368573278,1751212387442,-4333.58,0.00021917,2]
[368573279,1751212387466,-1617.01,0.00021917,2]
[368573280,1751212387487,-151.643281,0.00021917,2]
[368573281,1751212387509,-514.56,0.00021917,2]
[368573282,1751212387532,-1853.48,0.00021917,2]
[368573283,1751212387555,-490.0,0.00021917,2]
[368573284,1751212387577,-516.96,0.00021917,2]
[368573285,1751212387599,-490.0,0.00021917,2]
[368573286,1751212387623,-2540.17,0.00021917,2]
[368573287,1751212387652,-490.0,0.00021917,2]
[368573288,1751212387677,-490.0,0.00021917,2]
[368573289,1751212387702,-490.0,0.00021917,2]
[368573290,1751212387726,-2024.2,0.00021917,2]
[368573291,1751212387750,-259.22268,0.00021917,2]
[368573292,1751212387772,-2322.96,0.00021917,2]
[368573293,1751212387796,-259.22268,0.00021917,2]
[368573294,1751212387819,-153.988228,0.00021917,2]
[368573295,1751212387841,-151.0,0.00021917,2]
[368573296,1751212387864,-490.0,0.00021917,2]
[368573297,1751212387889,-490.0,0.00021917,2]
[368573298,1751212387911,-6716.83,0.00021917,2]
[368573299,1751212387935,-490.0,0.00021917,2]
[368573300,1751212387957,-838.52,0.00021917,2]
[368573301,1751212387981,-259.22268,0.00021917,2]
[368573302,1751212388004,-490.0,0.00021917,2]
[368573303,1751212388027,-3038.64,0.00021917,2]
[368573304,1751212388050,-259.22268,0.00021917,2]
[368573305,1751212388072,-938.71,0.00021917,2]
[368573306,1751212388095,-490.0,0.00021917,2]
[368573307,1751212388116,-492.4995218,0.00021917,2]
[368573308,1751212388141,-490.0,0.00021917,2]
[368573309,1751212388164,-1116.41,0.00021917,2]
[368573310,1751212388186,-490.0,0.00021917,2]
[368573311,1751212388208,-490.0,0.00021917,2]
[368573312,1751212388231,-370.03503391,0.00021917,2]
[368573313,1751212388254,-490.0,0.00021917,2]
[368573314,1751212388277,-490.0,0.00021917,2]
[368573315,1751212388302,-500.0,0.00021917,2]
[368573316,1751212388323,-2430.91,0.00021917,2]
[368573317,1751212388348,-500.0,0.00021917,2]
[368573318,1751212388371,-500.0,0.00021917,2]
[368573319,1751212388395,-1469.82,0.00021917,2]
[368573320,1751212388420,-490.0,0.00021917,2]
[368573321,1751212388446,-500.0,0.00021917,2]
[368573322,1751212388469,-500.0,0.00021917,2]
[368573323,1751212388494,-500.0,0.00021917,2]
[368573324,1751212388516,-2379.17,0.00021917,2]
[368573325,1751212388537,-849.38,0.00021917,2]
[368573326,1751212388559,-490.0,0.00021917,2]
[368573327,1751212388581,-2088.27,0.00021917,2]
[368573328,1751212388603,-490.0,0.00021917,2]
[368573329,1751212388623,-245.97642495,0.00021917,2]
[368573330,1751212388646,-490.0,0.00021917,2]
[368573331,1751212388668,-151.0,0.00021917,2]
[368573332,1751212388689,-568.82,0.00021917,2]
[368573333,1751212388710,-152.734873,0.00021917,2]
[368573334,1751212388731,-490.0,0.00021917,2]
[368573335,1751212388752,-1168.02,0.00021917,2]
[368573336,1751212388775,-3894.8,0.00021917,2]
[368573337,1751212388796,-490.0,0.00021917,2]
[368573338,1751212389128,-954.15,0.00021917,2]
[368573339,1751212389153,-13037.24,0.00021917,2]
[368573340,1751212389176,-159.091948,0.00021917,2]
[368573341,1751212389197,-490.0,0.00021917,2]
[368573342,1751212389219,-1450.32,0.00021917,2]
[368573343,1751212389240,-1127.13,0.00021917,2]
[368573344,1751212389262,-2621.81,0.00021917,2]
[368573345,1751212389284,-1015.45,0.00021917,2]
[368573346,1751212389305,-490.0,0.00021917,2]
[368573347,1751212389330,-2819.74,0.00021917,2]
[368573348,1751212389351,-490.0,0.00021917,2]
[368573349,1751212389372,-1434.57,0.00021917,2]
[368573350,1751212389395,-490.0,0.00021917,2]
[368573351,1751212389420,-490.0,0.00021917,2]
[368573352,1751212389441,-637.3874113,0.00021917,2]
[368573353,1751212389462,-2162.04,0.00021917,2]
[368573354,1751212389485,-15691.31,0.00021917,2]
[368573355,1751212389506,-1244.54,0.00021917,2]
[368573356,1751212389528,-587.56,0.00021917,2]
[368573357,1751212389551,-4741.49,0.00021917,2]
[368573358,1751212389573,-490.0,0.00021917,2]
[368573359,1751212389595,-919.61,0.00021917,2]
[368573360,1751212389615,-408.34882712,0.00021917,2]
[368573361,1751212389636,-220.0,0.00021917,2]
[368573362,1751212389658,-1130.05,0.00021917,2]
[368573363,1751212389679,-490.0,0.00021917,2]
[368573364,1751212389700,-490.0,0.00021917,2]
[368573365,1751212389721,-490.0,0.00021917,2]
[368573366,1751212389742,-173.395265,0.00021917,2]
[368573367,1751212389764,-7542.09,0.00021917,2]
[368573368,1751212389785,-511.13,0.00021917,2]
[368573369,1751212389808,-2564.37,0.00021917,2]
[368573370,1751212389830,-2751.29,0.00021917,2]
[368573371,1751212389852,-2419.95,0.00021917,2]
[368573372,1751212389875,-262.31518079,0.00021917,2]
[368573375,1751212442563,-173.21,0.00019178,2]
[368573376,1751212442583,-303.71,0.00020827,2]
[368573377,1751212442604,-303.76,0.00020827,2]
[368573378,1751212442626,-300.0,0.000215,7]
[368573379,1751212442646,-302.91,0.00021522,2]
[368573380,1751212442667,-301.03,0.00021522,2]
[368573381,1751212442689,-600.0,0.000216,7]
[368573382,1751212442712,-900.0,0.000217,7]
[368573383,1751212442735,-150.0,0.00021711,2]
[368573384,1751212442756,-1200.0,0.000218,7]
[368573385,1751212442777,-596.45796273,0.00021817,2]
[368573386,1751212442803,-152.95574294,0.00021873,2]
[368573387,1751212442826,-1500.0,0.000219,7]
[368573388,1751212442847,-600.0,0.00021916,2]
[368573389,1751212442868,-302.66,0.00021917,2]
[368573390,1751212442890,-300.98,0.00021917,2]
[368573391,1751212442915,-2151.84481921,0.00021917,2]
[368573392,1751212442937,-490.0,0.00021917,2]
[368573393,1751212442959,-2216.13,0.00021917,2]
[368573394,1751212442981,-1400.3,0.00021917,2]
[368573395,1751212443003,-5357.97,0.00021917,2]
[368573396,1751212443034,-490.0,0.00021917,2]
[368573397,1751212443056,-688.94,0.00021917,2]
[368573398,1751212443079,-5925.25,0.00021917,2]
[368573399,1751212443102,-5259.13,0.00021917,2]
[368573400,1751212443124,-500.0,0.00021917,2]
[368573401,1751212443145,-500.0,0.00021917,2]
[368573402,1751212443167,-658.7,0.00021917,2]
[368573403,1751212443189,-544.45998732,0.00021917,2]
[368573404,1751212443211,-2264.93,0.00021917,2]
[368573405,1751212443233,-324.65686095,0.00021917,2]
[368573406,1751212443254,-783.01,0.00021917,2]
[368573407,1751212443275,-490.0,0.00021917,2]
[368573408,1751212443296,-490.0,0.00021917,2]
[368573409,1751212443319,-2245.07,0.00021917,2]
[368573410,1751212443341,-12467.31,0.00021917,2]
[368573411,1751212443362,-490.0,0.00021917,2]
[368573412,1751212443384,-490.0,0.00021917,2]
[368573413,1751212443405,-2963.39,0.00021917,2]
[368573414,1751212443431,-712.92,0.00021917,2]
[368573415,1751212443454,-926.49,0.00021917,2]
[368573416,1751212443478,-1949.34,0.00021917,2]
[368573417,1751212443502,-2422.97,0.00021917,2]
[368573418,1751212443522,-490.0,0.00021917,2]
[368573419,1751212443544,-524.92,0.00021917,2]
[368573420,1751212443566,-1505.75,0.00021917,2]
[368573421,1751212443588,-5200.39,0.00021917,2]
[368573422,1751212443609,-1002.04,0.00021917,2]
[368573423,1751212443630,-2274.65,0.00021917,2]
[368573424,1751212443652,-827.96,0.00021917,2]
[368573425,1751212443673,-490.0,0.00021917,2]
[368573426,1751212443696,-500.0,0.00021917,2]
[368573427,1751212443719,-199.519423,0.00021917,2]
[368573428,1751212443741,-500.0,0.00021917,2]
[368573429,1751212443763,-425.06358682,0.00021917,2]
[368573430,1751212443785,-490.0,0.00021917,2]
[368573431,1751212443806,-490.0,0.00021917,2]
[368573432,1751212443829,-490.0,0.00021917,2]
[368573433,1751212443851,-2323.56,0.00021917,2]
[368573434,1751212444103,-490.0,0.00021917,2]
[368573435,1751212444151,-1125.65,0.00021917,2]
[368573436,1751212444174,-7306.2,0.00021917,2]
[368573437,1751212444197,-768.82,0.00021917,2]
[368573438,1751212444220,-490.0,0.00021917,2]
[368573439,1751212444241,-2770.19,0.00021917,2]
[368573440,1751212444264,-590.12,0.00021917,2]
[368573441,1751212444287,-1373.05,0.00021917,2]
[368573442,1751212444311,-1705.05,0.00021917,2]
[368573443,1751212444333,-2506.18,0.00021917,2]
[368573444,1751212444355,-550.1,0.00021917,2]
[368573445,1751212444376,-1343.96,0.00021917,2]
[368573446,1751212444399,-2959.24,0.00021917,2]
[368573447,1751212444423,-490.0,0.00021917,2]
[368573448,1751212444446,-583.46,0.00021917,2]
[368573449,1751212444469,-490.0,0.00021917,2]
[368573450,1751212444490,-490.0,0.00021917,2]
[368573451,1751212444514,-490.0,0.00021917,2]
[368573452,1751212444535,-490.0,0.00021917,2]
[368573453,1751212444557,-490.0,0.00021917,2]
[368573454,1751212444589,-490.0,0.00021917,2]
[368573455,1751212444614,-490.0,0.00021917,2]
[368573456,1751212444638,-490.0,0.00021917,2]
[368573457,1751212444662,-490.0,0.00021917,2]
[368573458,1751212444684,-639.13,0.00021917,2]
[368573459,1751212444707,-490.0,0.00021917,2]
[368573460,1751212444731,-490.0,0.00021917,2]
[368573461,1751212444755,-957.29,0.00021917,2]
[368573462,1751212444779,-151.538659,0.00021917,2]
[368573463,1751212444802,-490.0,0.00021917,2]
[368573464,1751212444826,-490.0,0.00021917,2]
[368573465,1751212444849,-490.0,0.00021917,2]
[368573466,1751212444872,-490.0,0.00021917,2]
[368573467,1751212444896,-490.0,0.00021917,2]
[368573468,1751212444920,-490.0,0.00021917,2]
[368573469,1751212444943,-490.0,0.00021917,2]
[368573470,1751212444968,-3074.96,0.00021917,2]
[368573471,1751212444992,-490.0,0.00021917,2]
[368573472,1751212445017,-2485.55,0.00021917,2]
[368573473,1751212445041,-493.0,0.00021917,2]
[368573474,1751212445066,-8173.83,0.00021917,2]
[368573475,1751212445089,-490.0,0.00021917,2]
[368573476,1751212445117,-490.0,0.00021917,2]
[368573477,1751212445141,-490.0,0.00021917,2]
[368573478,1751212445168,-2209.44,0.00021917,2]
[368573479,1751212445194,-565.490402,0.00021917,2]
[368573480,1751212445218,-565.490402,0.00021917,2]
[368573481,1751212445242,-698.11,0.00021917,2]
[368573482,1751212445267,-1549.15,0.00021917,2]
[368573483,1751212445291,-765.02,0.00021917,2]
[368573484,1751212445317,-2074.96,0.00021917,2]
[368573485,1751212445340,-632.67,0.00021917,2]
[368573486,1751212445364,-1432.81,0.00021917,2]
[368573487,1751212445390,-1473.19,0.00021917,2]
[368573488,1751212445414,-730.53,0.00021917,2]
[368573489,1751212445444,-490.0,0.00021917,2]
[368573490,1751212445468,-490.0,0.00021917,2]
[368573491,1751212445494,-29823.29,0.00021917,2]
[368573492,1751212445519,-565.490402,0.00021917,2]
[368573493,1751212445542,-490.0,0.00021917,2]
[368573494,1751212445567,-504.0,0.00021917,2]
[368573495,1751212445596,-2274.24,0.00021917,2]
[368573496,1751212445627,-565.490402,0.00021917,2]
[368573497,1751212445652,-490.0,0.00021917,2]
[368573498,1751212445678,-1439.53,0.00021917,2]
[368573499,1751212445702,-2315.02,0.00021917,2]
[368573500,1751212445727,-523.620408,0.00021917,2]
[368573501,1751212445753,-153.023922,0.00021917,2]
[368573502,1751212445776,-490.0,0.00021917,2]
[368573503,1751212445800,-3403.95,0.00021917,2]
[368573504,1751212445823,-490.0,0.00021917,2]
[368573505,1751212445848,-806.24,0.00021917,2]
[368573506,1751212445871,-490.0,0.00021917,2]
[368573507,1751212445896,-4594.21,0.00021917,2]
[368573508,1751212445919,-156.374598,0.00021917,2]
[368573509,1751212445943,-490.0,0.00021917,2]
[368573510,1751212445967,-490.0,0.00021917,2]
[368573511,1751212445991,-1398.5,0.00021917,2]
[368573512,1751212446015,-1019.67,0.00021917,2]
[368573513,1751212446040,-523.620408,0.00021917,2]
[368573514,1751212446064,-490.0,0.00021917,2]
[368573515,1751212446087,-2484.84,0.00021917,2]
[368573516,1751212446110,-490.0,0.00021917,2]
[368573517,1751212446135,-490.0,0.00021917,2]
[368573518,1751212446158,-522.99,0.00021917,2]
[368573519,1751212446182,-883.13,0.00021917,2]
[368573520,1751212446207,-522.99,0.00021917,2]
[368573521,1751212446230,-688.66,0.00021917,2]
[368573522,1751212446253,-152.676209,0.00021917,2]
[368573523,1751212446275,-490.0,0.00021917,2]
[368573524,1751212446305,-490.0,0.00021917,2]
[368573525,1751212446329,-490.0,0.00021917,2]
[368573526,1751212446353,-159.922011,0.00021917,2]
[368573527,1751212446377,-531.86,0.00021917,2]
[368573528,1751212446402,-9274.67,0.00021917,2]
[368573529,1751212446428,-490.0,0.00021917,2]
[368573530,1751212446452,-2709.84,0.00021917,2]
[368573531,1751212446474,-501.64510532,0.00021917,2]
[368573532,1751212446497,-1382.48,0.00021917,2]
[368573533,1751212446521,-1061.57,0.00021917,2]
[368573534,1751212446545,-490.0,0.00021917,2]
[368573535,1751212446568,-570.52,0.00021917,2]
[368573536,1751212446592,-826.35,0.00021917,2]
[368573537,1751212446616,-1098.13,0.00021917,2]
[368573538,1751212446638,-490.0,0.00021917,2]
[368573539,1751212446662,-5004.73,0.00021917,2]
[368573540,1751212446685,-2586.25,0.00021917,2]
[368573541,1751212446710,-14079.5,0.00021917,2]
[368573542,1751212446733,-490.7843343,0.00021917,2]
[368573543,1751212446756,-490.0,0.00021917,2]
[368573544,1751212447190,-3059.65,0.00021917,2]
[368573545,1751212447235,-490.0,0.00021917,2]
[368573546,1751212447257,-490.0,0.00021917,2]
[368573547,1751212447280,-503.43,0.00021917,2]
[368573548,1751212447302,-490.0,0.00021917,2]
[368573549,1751212447325,-490.0,0.00021917,2]
[368573550,1751212447347,-490.0,0.00021917,2]
[368573551,1751212447369,-100632.15,0.00021917,2]
[368573552,1751212447392,-3691.78,0.00021917,2]
[368573553,1751212447415,-1529.48,0.00021917,2]
[368573554,1751212447443,-490.0,0.00021917,2]
[368573555,1751212447467,-490.0,0.00021917,2]
[368573556,1751212447491,-2318.09,0.00021917,2]
[368573557,1751212447517,-1167.39,0.00021917,2]
[368573558,1751212447540,-1639.26,0.00021917,2]
[368573559,1751212447563,-490.0,0.00021917,2]
[368573560,1751212447584,-615.38,0.00021917,2]
[368573561,1751212447607,-3247.57,0.00021917,2]
[368573562,1751212447631,-604.12,0.00021917,2]
[368573563,1751212447653,-1221.71,0.00021917,2]
[368573564,1751212447675,-490.0,0.00021917,2]
[368573565,1751212447698,-490.0,0.00021917,2]
[368573566,1751212447719,-490.0,0.00021917,2]
[368573567,1751212447742,-150.485151,0.00021917,2]
[368573568,1751212447763,-490.0,0.00021917,2]
[368573569,1751212447784,-490.0,0.00021917,2]
[368573570,1751212447806,-490.0,0.00021917,2]
[368573571,1751212447828,-490.0,0.00021917,2]
[368573572,1751212447852,-797.74,0.00021917,2]
[368573573,1751212447875,-1756.39,0.00021917,2]
[368573574,1751212447897,-751.97,0.00021917,2]
[368573575,1751212447921,-20555.49,0.00021917,2]
[368573576,1751212447945,-490.0,0.00021917,2]
[368573577,1751212447968,-518.92,0.00021917,2]
[368573578,1751212447991,-3313.99,0.00021917,2]
[368573579,1751212448015,-764.8,0.00021917,2]
[368573580,1751212448041,-4089.85,0.00021917,2]
[368573581,1751212448065,-909.17,0.00021917,2]
[368573582,1751212448089,-3628.53,0.00021917,2]
[368573583,1751212448113,-490.0,0.00021917,2]
[368573584,1751212448136,-8126.17,0.00021917,2]
[368573585,1751212448161,-776.27,0.00021917,2]
[368573586,1751212448184,-490.0,0.00021917,2]
[368573587,1751212448211,-490.0,0.00021917,2]
[368573588,1751212448235,-490.0,0.00021917,2]
[368573589,1751212448257,-490.0,0.00021917,2]
[368573590,1751212448282,-3870.31,0.00021917,2]
[368573591,1751212448306,-490.0,0.00021917,2]
[368573592,1751212448329,-490.0,0.00021917,2]
[368573593,1751212448354,-799.39,0.00021918,2]
[368573594,1751212448377,-462.71,0.00021918,2]
[368573595,1751212448399,-799.39,0.00021918,2]
[368573596,1751212448424,-925.42,0.00021918,2]
[368573597,1751212448447,-500.0,0.00021918,2]
[368573598,1751212448469,-266.99665791,0.00021918,2]
[368573599,1751212448494,-187.0,0.0002192,2]
[368573600,1751212448521,-186.0,0.00021929,2]
[368573601,1751212448542,-19999.99,0.00021929,2]
[368573602,1751212448564,-625.35,0.00021929,2]
[368573603,1751212448588,-1106.24895899,0.00021939,2]
[368573604,1751212448610,-500.0,0.00021973,2]
[368573605,1751212448632,-394.39958567,0.00021973,2]
[368573606,1751212448655,-381.74382364,0.00021973,2]
[368573607,1751212448679,-500.0,0.00021973,2]
[368573608,1751212448701,-167.68551307,0.00021973,2]
[368573609,1751212448723,-504.53923254,0.00021973,2]
[368573610,1751212448746,-1106.24895899,0.00022,2]
[368573611,1751212448769,-163.0,0.00022,2]
[368573612,1751212448795,-354.0,0.00022011,2]
[368573613,1751212448819,-690.589261,0.00022015,4]
[368573614,1751212448843,-1106.24895899,0.00022061,2]
[368573615,1751212448866,-837.84970233,0.00022061,2]
[368573616,1751212448892,-186.0,0.0002208,2]
[368573617,1751212448915,-1106.24895899,0.00022121,2]
[368573618,1751212448937,-200.0,0.00022136,2]
[368573619,1751212448961,-200.0,0.00022136,2]
[368573620,1751212448985,-1151.0,0.00022144,2]
[368573621,1751212449007,-501.01204943,0.00022173,2]
[368573622,1751212449029,-500.0,0.00022173,2]
[368573623,1751212449052,-500.0,0.00022173,2]
[368573624,1751212449074,-433.65625289,0.00022173,2]
[368573625,1751212449098,-502.91280973,0.00022173,2]
[368573626,1751212449120,-531.74152762,0.00022173,2]
[368573627,1751212449144,-302.13566492,0.00022173,2]
[368573628,1751212449167,-500.0,0.00022173,2]
[368573629,1751212449189,-429.02482205,0.00022182,2]
[368573630,1751212449213,-1106.24895899,0.00022182,2]
[368573631,1751212449237,-500.0,0.0002219,2]
[368573632,1751212449260,-500.0,0.0002219,2]
[368573633,1751212449283,-500.0,0.0002219,2]
[368573634,1751212449305,-500.0,0.0002219,2]
[368573635,1751212449327,-483.69,0.0002219,2]
[368573636,1751212449349,-151.0,0.0002219,7]